Cogmind - Beta 15 @@@ ROGUE MODE // 2025.09.24 @ 18:47:14 Player: Petvaria Result: Destroyed by Striker with Compact Linear Accelerator Performance ------------- Evolutions (9) 4500 Regions Visited (29) 5800 Robots Destroyed (82) 410 Value Destroyed (2032) 2032 Prototype IDs (221) 4420 Alien Tech Used (6) 1200 Bonus (17432) 17432 TOTAL SCORE: 35794 Bonus ------- Follower Combat Kills 532 Registered with UFD 300 Met Data Miner 300 Used Data Conduit 3000 Met Zhirov 300 Met Warlord at Base 500 MAIN.C Attacked Warlord 500 Found Hidden Lab 3000 Decrypted A0 Command 3000 Scanned by Researcher 500 Pursued by Intercept 500 Met MAIN.C 5000 Cogmind --------- Core Integrity 0/1600 Matter 295/300 Energy 62/100 System Corruption 14% Temperature Cool (0) Movement Core (50) Location -1/Command Parts ------- > --- POWER (2) -------- (None) > --- PROPULSION (9) --- (None) > --- UTILITY (12) ----- Improved Signal Interpreter Hacking Suite Improved Hacking Suite Deep Network Scanner System Shield > --- WEAPON (2) ------- (None) > --- INVENTORY (5) ---- Q-thruster Q-thruster Cooled Impulse Thruster Power Amplifier Transdimensional Reconstructor Peak State ------------ > --- POWER ------------ Backup Power VII Light Quantum Reactor > --- PROPULSION ------- Improved Flight Unit Improved Flight Unit Impulse Thruster Q-thruster Q-thruster Electron Diverter Cooled Impulse Thruster Impulse Thruster Array > --- UTILITY ---------- Medium Storage Unit Improved Sensor Array Improved Signal Interpreter Experimental Propulsion Shielding Hacking Suite Hacking Suite Improved Hacking Suite Improved Hacking Suite System Mapper Deep Network Scanner System Shield > --- WEAPON ----------- Backup Laser VII Backup Laser VII > --- INVENTORY -------- Backup Power VII Q-thruster Q-thruster Cooled Impulse Thruster Power Amplifier Transdimensional Reconstructor Backup Laser VII Vortex Driver Enhanced Nova Cannon Guided Remote Datajack [Rating: 152] Favorites ----------- Power Ion Engine Engine Ion Engine Power Core Backup Power VII Reactor Light Antimatter Reactor Propulsion Light Treads Treads Light Treads Flight Unit Improved Flight Unit Utility Hacking Suite Device Improved Sensor Array Storage Large Storage Unit Processor Improved Signal Interpreter Hackware Hacking Suite Protection Medium Armor Plating Weapon Assault Rifle Energy Gun Medium Laser Energy Cannon Enhanced Nova Cannon Ballistic Gun Assault Rifle Ballistic Cannon Improved Light Cannon Launcher Compact Tesla Bomb Launcher Special Weapon Improved Remote Datajack Impact Weapon Maul Slashing Weapon Chainsword Piercing Weapon Kinetic Spear Special Melee Weapon Improved Datajack Build | -11 -10 -9 -9 -9 -9 -6 -6 -6 -6 -6 -6 -5 -5 -5 -5 -5 -4 -4 -4 -4 -4 -3 -3 -3 -3 -2 -2 -1 -1 ------- Run | Yrd Mat Mat Sto Rec Scr Fac Was Fac Low Low Dat Pro Fac Upp Upp Zhi Pro Fac Upp Upp War Pro Res Arm Lab Res Qua Acc Com Slots Evolved 18 | . . 2 . . . 6 . . . . . . 2 . . . . 2 . . . . 2 . . 2 . 2 . Power 1 | . . . . . . . . . . . . . . . . . . . . . . . 1 . . . . . . Propulsion 7 | . . 1 . . . 2 . . . . . . . . . . . 1 . . . . 1 . . 1 . 1 . Utility 10 | . . 1 . . . 4 . . . . . . 2 . . . . 1 . . . . . . . 1 . 1 . Weapon . | . . . . . . . . . . . . . . . . . . . . . . . . . . . . . . Parts Attached 104 | 6 1 17 19 . . 14 . 6 . . . . 3 . 3 . 3 4 1 . 4 1 5 2 3 6 . 4 2 Power 14 | 1 . 2 3 . . 1 . . . . . . . . 1 . 1 . 1 . 1 1 . . . . . 1 1 Engine 7 | 1 . 2 3 . . 1 . . . . . . . . . . . . . . . . . . . . . . . Core 3 | . . . . . . . . . . . . . . . 1 . 1 . . . . . . . . . . . 1 Reactor 4 | . . . . . . . . . . . . . . . . . . . 1 . 1 1 . . . . . 1 . Propulsion 35 | 2 . 7 8 . . 4 . 1 . . . . . . 2 . 1 1 . . 1 . 4 2 . 1 . 1 . Treads 16 | 2 . 6 8 . . . . . . . . . . . . . . . . . . . . . . . . . . Leg . | . . . . . . . . . . . . . . . . . . . . . . . . . . . . . . Wheel . | . . . . . . . . . . . . . . . . . . . . . . . . . . . . . . Hover . | . . . . . . . . . . . . . . . . . . . . . . . . . . . . . . Flight 19 | . . 1 . . . 4 . 1 . . . . . . 2 . 1 1 . . 1 . 4 2 . 1 . 1 . Utility 34 | 1 1 6 5 . . 5 . 4 . . . . 3 . . . . 2 . . 1 . 1 . 2 3 . . . Device 6 | . . . 1 . . 1 . 1 . . . . 1 . . . . 1 . . . . 1 . . . . . . Storage 3 | 1 . 2 . . . . . . . . . . . . . . . . . . . . . . . . . . . Processor 1 | . . . . . . . . 1 . . . . . . . . . . . . . . . . . . . . . Hackware 13 | . . . . . . 3 . 2 . . . . 2 . . . . . . . 1 . . . 2 3 . . . Protection 11 | . 1 4 4 . . 1 . . . . . . . . . . . 1 . . . . . . . . . . . Artifact . | . . . . . . . . . . . . . . . . . . . . . . . . . . . . . . Weapon 21 | 2 . 2 3 . . 4 . 1 . . . . . . . . 1 1 . . 1 . . . 1 2 . 2 1 Energy Gun 1 | 1 . . . . . . . . . . . . . . . . . . . . . . . . . . . . . Energy Cannon 3 | . . . . . . . . . . . . . . . . . . . . . 1 . . . . . . 1 1 Ballistic Gun 5 | 1 . 2 2 . . . . . . . . . . . . . . . . . . . . . . . . . . Ballistic Cannon 2 | . . . 1 . . 1 . . . . . . . . . . . . . . . . . . . . . . . Launcher 1 | . . . . . . . . . . . . . . . . . . . . . . . . . . . . 1 . Special Weapon 2 | . . . . . . . . . . . . . . . . . 1 . . . . . . . 1 . . . . Impact Weapon 1 | . . . . . . 1 . . . . . . . . . . . . . . . . . . . . . . . Slashing Weapon 1 | . . . . . . 1 . . . . . . . . . . . . . . . . . . . . . . . Piercing Weapon 1 | . . . . . . . . . . . . . . . . . . . . . . . . . . 1 . . . Special Melee Weapon 4 | . . . . . . 1 . 1 . . . . . . . . . 1 . . . . . . . 1 . . . Unidentified Prototypes 12 | . . 1 1 . . . . . . . . . . . . 1 . . . . 2 . . 1 4 . 1 1 . Parts Lost 43 | . . 5 4 . . 1 . . . . 1 1 . 2 1 . 5 1 1 . . . 1 . . . . 2 18 Power 11 | . . 3 . . . . . . . . . . . 1 . . 1 . 1 . . . 1 . . . . 1 3 Propulsion 13 | . . 1 1 . . . . . . . . . . 1 1 . 1 . . . . . . . . . . . 8 Utility 11 | . . . 2 . . . . . . . 1 . . . . . 2 . . . . . . . . . . . 6 Weapon 8 | . . 1 1 . . 1 . . . . . 1 . . . . 1 1 . . . . . . . . . 1 1 Highest Loss Streak 18 | . . 2 1 . . 1 . . . . 1 1 . 2 1 . 3 1 1 . . . 1 . . . . 1 18 To Critical Strikes . | . . . . . . . . . . . . . . . . . . . . . . . . . . . . . . Average Backups 11 | 2 7 13 14 15 15 10 10 10 10 10 10 10 8 10 7 8 9 9 9 10 9 10 9 9 9 9 9 8 7 Power . | . 1 . . . . . 1 1 1 1 1 1 1 1 . . . 1 . 1 1 1 1 . . . 1 . . Propulsion 5 | 1 3 7 9 10 10 5 4 4 4 4 4 4 4 4 2 2 1 . . . . 1 . 2 2 3 3 3 3 Utility 3 | . . 2 2 3 3 3 4 4 5 5 5 5 3 5 5 5 7 6 7 8 7 6 5 5 6 3 1 2 1 Weapon 1 | . 1 1 1 1 1 1 1 . . . . . . . . . . . . . . 1 1 1 1 1 1 1 1 Tool/Special . | . . . . . . . . . . . . . . . . . . . . . . . . . . . . . . Unused Backups 34 | . 4 7 5 . . 2 . 3 . . . . . . . . 1 . . . 4 . . . . 2 2 . 4 Power 3 | . . . . . . . . 1 . . . . . . . . 1 . . . 1 . . . . . . . . Propulsion 18 | . 3 5 5 . . 1 . . . . . . . . . . . . . . 1 . . . . . . . 3 Utility 8 | . . 1 . . . . . 2 . . . . . . . . . . . . 2 . . . . 2 1 . . Weapon 3 | . 1 1 . . . 1 . . . . . . . . . . . . . . . . . . . . . . . Tool/Special 2 | . . . . . . . . . . . . . . . . . . . . . . . . . . . 1 . 1 Average Slot Usage (%) 94 | . 99 96 98 100 100 74 80 92 100 100 100 92 90 93 93 94 87 85 84 89 93 94 92 89 83 88 89 84 78 Engine 6 | . 14 10 9 11 11 6 6 . . . . . . . . . . . . . . . . . . . . . . Core 1 | . . . . . . . . 5 6 6 6 6 5 4 4 5 3 5 4 . . . 3 4 4 4 4 4 3 Treads 18 | . 28 31 33 33 33 4 . . . . . . . . . . . . . . . . . . . . . . . Flight 12 | . . . . . . 25 33 32 33 33 33 33 29 28 29 29 26 26 26 26 30 31 31 27 28 26 30 30 31 Device 2 | . . . . . . 2 6 5 6 6 6 . 2 5 5 5 4 5 5 10 10 10 9 9 4 4 4 4 2 Storage 8 | . 14 11 11 11 11 6 6 6 6 6 6 6 5 5 5 5 5 5 5 5 5 5 4 4 4 4 4 4 3 Processor 1 | . . . . . . . . 2 6 6 6 6 5 5 5 5 5 5 5 5 5 5 4 4 4 4 4 4 4 Hackware 11 | . . . . . . 13 20 28 26 26 26 26 34 35 35 35 31 26 26 26 26 26 23 23 21 27 30 28 26 Protection 12 | . 13 21 21 22 22 3 . . . . . . . . . . . 4 5 5 4 5 4 4 4 4 1 . 2 Energy Gun 1 | . 14 2 . . . . . . . . . . . . . . . . . . . . . . . . . . . Ballistic Gun 11 | . 14 19 21 22 22 3 . . . . . . . . . . . . . . . . . . . . . . . Slashing Weapon 1 | . . . . . . 1 6 6 6 6 6 6 5 5 5 5 5 5 5 5 5 5 4 4 4 2 . . . Peak Build Rating 152 | 6 7 13 19 15 15 43 40 54 54 54 54 51 61 61 58 61 65 67 71 71 95 88 110 126 120 142 142 142 152 Average Rating 37 | 4 6 10 14 15 15 31 40 50 54 54 53 50 57 60 57 59 57 64 65 71 84 87 98 113 111 128 132 135 128 On Entrance 60 | . 6 7 12 15 15 15 40 40 54 54 54 51 48 61 51 58 61 54 64 71 71 87 87 103 110 114 142 136 130 Naked Turns . | . . . . . . . . . . . . . . . . . . . . . . . . . . . . . . Heaviest Build 50 | 14 17 41 46 41 41 41 23 23 19 19 19 18 18 18 21 21 23 21 27 27 27 30 32 35 50 48 34 47 44 Greatest Support 64 | 40 40 60 60 60 60 60 25 25 25 25 25 25 25 25 25 25 25 26 38 38 46 34 47 50 50 57 57 64 59 Greatest Overweight (x) . | . . . . . . . . . . . . . . . . . . . . . . . . . . . . . . Average Overweight (x) . | . . . . . . . . . . . . . . . . . . . . . . . . . . . . . . Largest Inventory Capacity 15 | 8 8 15 15 15 15 15 10 10 10 10 10 10 10 10 10 10 10 10 10 10 10 10 10 10 10 10 10 10 10 Average Capacity 12 | 7 8 14 15 15 15 11 10 10 10 10 10 10 10 10 10 10 10 10 10 10 10 10 10 10 10 10 10 10 8 Most Carried 15 | 6 8 15 15 15 15 15 10 10 10 10 10 10 10 10 9 10 10 10 10 10 10 10 10 10 10 10 10 10 10 Average Carried 11 | 2 7 13 14 15 15 10 10 9 10 10 10 10 8 10 7 8 9 9 9 10 9 10 9 9 9 9 9 8 7 Final Capacity 15 | 8 8 15 15 15 15 10 10 10 10 10 10 10 10 10 10 10 10 10 10 10 10 10 10 10 10 10 10 10 5 Final Carried 15 | 6 8 15 15 15 15 10 10 10 10 10 10 10 10 10 7 10 10 10 10 10 10 10 10 9 10 9 10 8 5 Class Distribution -------------------- 44% | Mutant 21% | Wizard-Sprinter 17% | Hacker-Sprinter 15% | Scavenger-Mutant Dominant Class ---------------- Mutant | -10/Materials Mutant | -9/Materials Scavenger-Mutant | -9/Storage Mutant | -9/Recycling Mutant | -9/Scraptown Hacker-Sprinter | -6/Factory Hacker-Sprinter | -6/Waste Hacker-Sprinter | -6/Factory Hacker-Sprinter | -6/Lower Caves Hacker-Sprinter | -6/Lower Caves Hacker-Sprinter | -6/Data Miner Hacker-Sprinter | -5/Proximity Caves Wizard-Sprinter | -5/Factory Wizard-Sprinter | -5/Upper Caves Wizard-Sprinter | -5/Upper Caves Wizard-Sprinter | -5/Zhirov Hacker-Sprinter | -4/Proximity Caves Hacker-Sprinter | -4/Factory Hacker-Sprinter | -4/Upper Caves Hacker-Sprinter | -4/Upper Caves Wizard-Sprinter | -4/Warlord Wizard-Sprinter | -3/Proximity Caves Wizard-Sprinter | -3/Research Wizard-Sprinter | -3/Armory Wizard-Sprinter | -3/Lab Wizard-Sprinter | -2/Research Wizard-Sprinter | -2/Quarantine Wizard-Sprinter | -1/Access Wizard-Sprinter | -1/Command Resources | -11 -10 -9 -9 -9 -9 -6 -6 -6 -6 -6 -6 -5 -5 -5 -5 -5 -4 -4 -4 -4 -4 -3 -3 -3 -3 -2 -2 -1 -1 ----------- Run | Yrd Mat Mat Sto Rec Scr Fac Was Fac Low Low Dat Pro Fac Upp Upp Zhi Pro Fac Upp Upp War Pro Res Arm Lab Res Qua Acc Com Matter Collected 2459 | 198 144 661 655 54 11 216 . 78 . . . 2 20 10 30 20 30 25 30 . 50 10 . . . 24 191 . . Remotely . | . . . . . . . . . . . . . . . . . . . . . . . . . . . . . . Salvage Created 3696 | . 215 1118 1032 . . 525 . 83 . . . 14 94 . . 289 52 25 . . . . . . . 24 225 . . Parts 201 | . 14 76 66 . . 8 . 11 . . . 3 1 . . . 5 5 . . . . . . . 4 8 . . Haulers Intercepted 11 | . 1 6 1 . . 2 . . . . . . 1 . . . . . . . . . . . . . . . . Recyclers Shooed 7 | . 1 4 2 . . . . . . . . . . . . . . . . . . . . . . . . . . Parts Field Recycled . | . . . . . . . . . . . . . . . . . . . . . . . . . . . . . . Retrieved Matter . | . . . . . . . . . . . . . . . . . . . . . . . . . . . . . . Parts Self-Destructed 13 | . . . . . . . . . . . . 3 . 2 . . 8 . . . . . . . . . . . . Prevented 2 | . . . . . . . . . . . . . . 2 . . . . . . . . . . . . . . . Kills | -11 -10 -9 -9 -9 -9 -6 -6 -6 -6 -6 -6 -5 -5 -5 -5 -5 -4 -4 -4 -4 -4 -3 -3 -3 -3 -2 -2 -1 -1 ------- Run | Yrd Mat Mat Sto Rec Scr Fac Was Fac Low Low Dat Pro Fac Upp Upp Zhi Pro Fac Upp Upp War Pro Res Arm Lab Res Qua Acc Com Combat Hostiles Destroyed 40 | . 2 16 20 . . . . . . . . 1 . . . . 1 . . . . . . . . . . . . Melee 2 | . . . . . . . . . . . . 1 . . . . 1 . . . . . . . . . . . . Guns 38 | . 2 16 20 . . . . . . . . . . . . . . . . . . . . . . . . . . Classes Destroyed 13 | . 4 5 1 . . . . . . . . 1 . . . . 1 . . . . . . . . . 1 . . Worker 3 | . 2 1 . . . . . . . . . . . . . . . . . . . . . . . . . . . Builder 3 | . . 2 1 . . . . . . . . . . . . . . . . . . . . . . . . . . Hauler 11 | . 1 6 1 . . 2 . . . . . . 1 . . . . . . . . . . . . . . . . Recycler 5 | . . 2 . . . 2 . . . . . . . . . . . . . . . . . . . . 1 . . Mechanic 1 | . . . 1 . . . . . . . . . . . . . . . . . . . . . . . . . . Operator 10 | . . 1 1 . . 2 . 4 . . . . . . . . . 1 . . . . . . . 1 . . . Drone 1 | . . . . . . . . . . . . 1 . . . . . . . . . . . . . . . . . Watcher 8 | . 1 4 2 . . 1 . . . . . . . . . . . . . . . . . . . . . . . Swarmer 12 | . . 9 3 . . . . . . . . . . . . . . . . . . . . . . . . . . Grunt 14 | . 2 2 10 . . . . . . . . . . . . . . . . . . . . . . . . . . Researcher 1 | . . . . . . . . . . . . . . . . . . . . . . . . . . . 1 . . Sentry 12 | . . 5 7 . . . . . . . . . . . . . . . . . . . . . . . . . . Programmer 1 | . . . . . . . . . . . . . . . . . 1 . . . . . . . . . . . . Best Kill Streak 7 | . 3 7 3 . . 3 . 1 . . . 1 1 . . . 1 1 . . . . . . . 1 1 . . Combat Bots Only 5 | . 2 5 3 . . . . . . . . 1 . . . . 1 . . . . . . . . . . . . Max Kills in Single Turn 2 | . 2 2 2 . . 1 . 1 . . . 1 1 . . . 1 1 . . . . . . . 1 1 . . Gunslinging . | . . . . . . . . . . . . . . . . . . . . . . . . . . . . . . Exploded . | . . . . . . . . . . . . . . . . . . . . . . . . . . . . . . Melee 1 | . . . . . . . . . . . . 1 . . . . 1 . . . . . . . . . . . . Uniques/NPCs Destroyed 1 | . . . . . . . . . . . . . . . . . . . . . . . . . 1 . . . . A5 (-3/Lab) Combat | -11 -10 -9 -9 -9 -9 -6 -6 -6 -6 -6 -6 -5 -5 -5 -5 -5 -4 -4 -4 -4 -4 -3 -3 -3 -3 -2 -2 -1 -1 -------- Run | Yrd Mat Mat Sto Rec Scr Fac Was Fac Low Low Dat Pro Fac Upp Upp Zhi Pro Fac Upp Upp War Pro Res Arm Lab Res Qua Acc Com Hostile Shots Fired 598 | . 11 85 114 . . 16 . 35 . . 3 3 7 6 4 . 53 8 7 . 2 . 5 . 3 31 22 18 165 Missed 244 | . 1 17 23 . . 14 . 23 . . 2 . 3 2 1 . 29 5 4 . 1 . 2 . 2 17 14 5 79 Hits 354 | . 10 68 91 . . 2 . 12 . . 1 3 4 4 3 . 24 3 3 . 1 . 3 . 1 14 8 13 86 Projectile 354 | . 10 68 91 . . 2 . 12 . . 1 3 4 4 3 . 24 3 3 . 1 . 3 . 1 14 8 13 86 AOE 4 | . . . . . . . . . . . . 2 . . . . . . . . . . . . . . . . 2 Critical Strikes 14 | . 1 4 2 . . . . . . . . . . . 1 . . . . . . . . . . . . . 6 Part Disruptions 4 | . . . . . . . . . . . . . . . . . . . . . . . . . . . . . 4 Actively Blocked 1 | . . . . . . . . . . . . . . . . . . . . . . . . . . . . . 1 Damage Taken 6837 | . 129 871 1102 . . 54 . 213 . . 50 105 81 56 72 . 527 161 62 . 17 . 118 . 24 329 90 346 2430 Core 2171 | . 40 109 78 . . 35 . 88 . . . 68 . 13 19 . 155 . 14 . . . . . . 165 . 42 1345 Absorbed by Shields 241 | . . . . . . . . . . . . . . . . . . . . . . . . . . . . . 241 Redirected to Shielding 300 | . . . . . . . . . . . . . . . . . . 22 20 . . . 25 . 21 58 . . 154 Regen/Repaired (Parts) 293 | . . . . . . . . 38 . . . . . . . . . . . . 109 . . . . . 146 . . Core Remaining (%) 85 | 100 84 . . . 53 . . . . . . 77 . . . . 81 . . . . 98 . . 100 . 88 . . Volleys Fired 262 | . 24 103 88 . . 11 . . . . . . . . . . . . . . . . . . 2 2 . 21 11 Largest 2 | . 2 2 2 . . 1 . . . . . . . . . . . . . . . . . . 1 1 . 1 1 Hottest 120 | . 70 70 43 . . 20 . . . . . . . . . . . . . . . . . . 100 100 . 105 120 Shots Fired 461 | . 48 193 173 . . 11 . . . . . . . . . . . . . . . . . . 2 2 . 21 11 Gun 424 | . 48 193 172 . . 11 . . . . . . . . . . . . . . . . . . . . . . . Cannon 33 | . . . 1 . . . . . . . . . . . . . . . . . . . . . 1 2 . 18 11 Launcher 3 | . . . . . . . . . . . . . . . . . . . . . . . . . . . . 3 . Special 1 | . . . . . . . . . . . . . . . . . . . . . . . . . 1 . . . . Kinetic 375 | . 24 167 173 . . 11 . . . . . . . . . . . . . . . . . . . . . . . Thermal 69 | . 24 26 . . . . . . . . . . . . . . . . . . . . . . . . . 11 8 Explosive . | . . . . . . . . . . . . . . . . . . . . . . . . . . . . . . Electromagnetic 3 | . . . . . . . . . . . . . . . . . . . . . . . . . . . . 3 . Entropic 13 | . . . . . . . . . . . . . . . . . . . . . . . . . 1 2 . 7 3 Robot Hit Streak 31 | . 6 15 31 . . 2 . . . . . . . . . . . . . . . . . . 2 . . . . Robot Miss Streak 5 | . 5 3 4 . . 2 . . . . . . . . . . . . . . . . . . . . . . . Penetration Max . | . . . . . . . . . . . . . . . . . . . . . . . . . . . . . . Secondary Targets 4 | . . 1 3 . . . . . . . . . . . . . . . . . . . . . . . . . . Max Gunslinging Chain 1 | . . 1 1 . . . . . . . . . . . . . . . . . . . . . . . . . . Shots Hit Robots 326 | . 19 133 125 . . 18 . 4 . . 1 1 8 . . 6 2 1 1 . . . . . 1 1 5 . . Core Hits 125 | . 9 50 46 . . 5 . 2 . . . 1 2 . . 3 2 1 . . . . . . . 1 3 . . Critical Kills 2 | . . . 1 . . 1 . . . . . . . . . . . . . . . . . . . . . . . Critical Parts Destroyed 4 | . . 1 1 . . 2 . . . . . . . . . . . . . . . . . . . . . . . Critical Strikes 13 | . 1 3 2 . . 4 . . . . . . 1 . . . 1 . . . . . . . . . 1 . . Burn 3 | . 1 2 . . . . . . . . . . . . . . . . . . . . . . . . . . . Destroy 3 | . . 1 2 . . . . . . . . . . . . . . . . . . . . . . . . . . Smash 3 | . . . . . . 3 . . . . . . . . . . . . . . . . . . . . . . . Sever 3 | . . . . . . 1 . . . . . . 1 . . . 1 . . . . . . . . . . . . Impale 1 | . . . . . . . . . . . . . . . . . . . . . . . . . . . 1 . . Melee Attacks 133 | . . . . . . 20 . 26 . . 7 1 21 2 2 6 3 6 3 2 . 3 4 1 5 8 13 . . Impact 8 | . . . . . . 8 . . . . . . . . . . . . . . . . . . . . . . . Slashing 110 | . . . . . . 12 . 26 . . 7 1 21 2 2 6 3 6 3 2 . 3 4 1 5 6 . . . Piercing 15 | . . . . . . . . . . . . . . . . . . . . . . . . . . 2 13 . . Sneak Attacks 10 | . . . . . . 4 . 1 . . 1 1 1 . . . . . 1 . . . . . . . 1 . . Combat Hostiles 1 | . . . . . . . . . . . . 1 . . . . . . . . . . . . . . . . . Follow-up Attacks . | . . . . . . . . . . . . . . . . . . . . . . . . . . . . . . Damage Inflicted 6400 | . 272 1762 1715 . . 838 . 259 . . 87 66 351 . . 501 85 51 88 . . . . . . 58 267 . . Guns 3813 | . 272 1762 1714 . . 65 . . . . . . . . . . . . . . . . . . . . . . . Cannons . | . . . . . . . . . . . . . . . . . . . . . . . . . . . . . . Explosions . | . . . . . . . . . . . . . . . . . . . . . . . . . . . . . . Melee 2582 | . . . . . . 773 . 259 . . 87 66 351 . . 501 85 51 88 . . . . . . 58 263 . . Ramming 5 | . . . 1 . . . . . . . . . . . . . . . . . . . . . . . 4 . . Kinetic 3447 | . 143 1525 1714 . . 65 . . . . . . . . . . . . . . . . . . . . . . . Thermal 366 | . 129 237 . . . . . . . . . . . . . . . . . . . . . . . . . . . Explosive . | . . . . . . . . . . . . . . . . . . . . . . . . . . . . . . Electromagnetic . | . . . . . . . . . . . . . . . . . . . . . . . . . . . . . . Impact 327 | . . . . . . 327 . . . . . . . . . . . . . . . . . . . . . . . Slashing 1992 | . . . . . . 446 . 259 . . 87 66 351 . . 501 85 51 88 . . . . . . 58 . . . Piercing 263 | . . . . . . . . . . . . . . . . . . . . . . . . . . . 263 . . Highest Corruption 14 | . . . 1 1 . 1 1 1 1 1 1 1 . . . . 1 . . . . . . . . 2 2 1 14 Average Corruption 1 | . . . 1 1 . 1 1 1 1 1 1 1 . . . . 1 . . . . . . . . 1 2 1 2 Corruption Purged . | . . . . . . . . . . . . . . . . . . . . . . . . . . . . . . Corruption Blocked . | . . . . . . . . . . . . . . . . . . . . . . . . . . . . . . Effects 26 | . . . 6 4 . 1 . 3 . 1 1 . . . . . . . . . . . . . . . 4 1 5 Message Errors 5 | . . . 1 2 . . . . . 1 . . . . . . . . . . . . . . . . 1 . . Matter Fused 9 | . . . 1 2 . 1 . 1 . . 1 . . . . . . . . . . . . . . . . 1 2 Heat Flow Errors 3 | . . . . . . . . 1 . . . . . . . . . . . . . . . . . . 1 . 1 Energy Discharges 3 | . . . 1 . . . . . . . . . . . . . . . . . . . . . . . 2 . . Data Loss (minor) 4 | . . . 2 . . . . . . . . . . . . . . . . . . . . . . . . . 2 Data Loss (major) 1 | . . . . . . . . 1 . . . . . . . . . . . . . . . . . . . . . Weapon Failures 1 | . . . 1 . . . . . . . . . . . . . . . . . . . . . . . . . . Overload Shots . | . . . . . . . . . . . . . . . . . . . . . . . . . . . . . . Overflow Damage 661 | . . . . . . 240 . 95 . . 27 . 33 . . 172 . . 48 . . . . . . . 46 . . Projectiles . | . . . . . . . . . . . . . . . . . . . . . . . . . . . . . . Explosions . | . . . . . . . . . . . . . . . . . . . . . . . . . . . . . . Melee 661 | . . . . . . 240 . 95 . . 27 . 33 . . 172 . . 48 . . . . . . . 46 . . Knockbacks 1 | . . . . . . 1 . . . . . . . . . . . . . . . . . . . . . . . Impact 1 | . . . . . . 1 . . . . . . . . . . . . . . . . . . . . . . . Kinetic . | . . . . . . . . . . . . . . . . . . . . . . . . . . . . . . Secondary . | . . . . . . . . . . . . . . . . . . . . . . . . . . . . . . Self-Inflicted Damage 125 | . . . . . . . . . . . . . . . . . . . . . . . . . . . 2 34 89 Shots 2 | . . . . . . . . . . . . . . . . . . . . . . . . . . . . 1 1 Rammed 2 | . . . 1 . . . . . . . . . . . . . . . . . . . . . . . 1 . . Targets Rammed 2 | . . . 1 . . . . . . . . . . . . . . . . . . . . . . . 1 . . Kicked . | . . . . . . . . . . . . . . . . . . . . . . . . . . . . . . Crushed . | . . . . . . . . . . . . . . . . . . . . . . . . . . . . . . Highest Temperature 314 | . 223 166 57 . . . . 192 . . . . . . 314 . . . . . . . . . 26 54 161 282 137 Average Temperature 62 | . 67 37 14 . . . . 74 . . . . . . 150 . . . . . . . . . 13 26 81 160 47 Received Heat Transfer 1405 | . 93 288 453 . . . . 48 . . . . 27 . 331 . 9 . 21 . 9 . . . . . 9 18 99 Effects 2 | . . . . . . . . . . . . . . . 1 . . . . . . . . . . . . 1 . Energy Bleed 1 | . . . . . . . . . . . . . . . . . . . . . . . . . . . . 1 . Damage (minor) 1 | . . . . . . . . . . . . . . . 1 . . . . . . . . . . . . . . Siege Activations . | . . . . . . . . . . . . . . . . . . . . . . . . . . . . . . Martial Activations . | . . . . . . . . . . . . . . . . . . . . . . . . . . . . . . Shielding Activations . | . . . . . . . . . . . . . . . . . . . . . . . . . . . . . . Robots Disrupted . | . . . . . . . . . . . . . . . . . . . . . . . . . . . . . . Combat Hostiles . | . . . . . . . . . . . . . . . . . . . . . . . . . . . . . . Robots Corrupted 3 | . . . . . . 3 . . . . . . . . . . . . . . . . . . . . . . . Combat Hostiles . | . . . . . . . . . . . . . . . . . . . . . . . . . . . . . . Parts Fried 9 | . . . . . . 9 . . . . . . . . . . . . . . . . . . . . . . . Impact Corruptions 5 | . . . . . . 5 . . . . . . . . . . . . . . . . . . . . . . . Robots Melted . | . . . . . . . . . . . . . . . . . . . . . . . . . . . . . . Combat Hostiles . | . . . . . . . . . . . . . . . . . . . . . . . . . . . . . . Parts Melted 3 | . 2 1 . . . . . . . . . . . . . . . . . . . . . . . . . . . Heat Transferred 1295 | . 444 851 . . . . . . . . . . . . . . . . . . . . . . . . . . . Parts Sabotaged . | . . . . . . . . . . . . . . . . . . . . . . . . . . . . . . Parts Stolen . | . . . . . . . . . . . . . . . . . . . . . . . . . . . . . . Parts Stripped . | . . . . . . . . . . . . . . . . . . . . . . . . . . . . . . Power Chain Reactions . | . . . . . . . . . . . . . . . . . . . . . . . . . . . . . . Alert | -11 -10 -9 -9 -9 -9 -6 -6 -6 -6 -6 -6 -5 -5 -5 -5 -5 -4 -4 -4 -4 -4 -3 -3 -3 -3 -2 -2 -1 -1 ------- Run | Yrd Mat Mat Sto Rec Scr Fac Was Fac Low Low Dat Pro Fac Upp Upp Zhi Pro Fac Upp Upp War Pro Res Arm Lab Res Qua Acc Com Maximum Alert Level 1 | . . . 1 . . . . 1 . . . . . . . . . . . . . . 1 . . . . . 1 Low Security (%) 90 | 100 100 100 98 100 . 100 100 47 . . . . 100 . . . . 100 . . . . 15 100 . 100 100 100 9 Level 1 9 | . . . 1 . . . . 52 . . . . . . . . . . . . . . 84 . . . . . 90 Level 2 . | . . . . . . . . . . . . . . . . . . . . . . . . . . . . . . Level 3 . | . . . . . . . . . . . . . . . . . . . . . . . . . . . . . . Level 4 . | . . . . . . . . . . . . . . . . . . . . . . . . . . . . . . Level 5 . | . . . . . . . . . . . . . . . . . . . . . . . . . . . . . . High Security . | . . . . . . . . . . . . . . . . . . . . . . . . . . . . . . Max Security . | . . . . . . . . . . . . . . . . . . . . . . . . . . . . . . Peak Influence 377 | . 40 156 205 55 . 119 38 276 . . . . 60 . . . . 54 . . . . 300 67 . 30 33 122 377 Initial 300 | . . . 27 55 . . 38 19 . . . . 2 . . . . 53 . . . . 300 62 . . 11 . 64 Average 71 | . 4 73 100 5 . 44 37 159 . . . . 6 . . . . 43 . . . . 254 60 . 6 6 22 273 Influence Increases 3919 | . 75 608 607 . . 296 . 458 . . . 50 110 45 15 10 155 28 105 . 275 . 359 15 . 65 55 190 398 Destroy 0b10 Robot/C 1020 | . 40 320 400 . . . . . . . . . . . . . 20 . . . 180 . . . . . 20 40 . Destroy 0b10 Robot/NC 215 | . 20 80 30 . . 30 . 15 . . . 5 5 . . 10 . 5 . . . . . . . 5 5 5 . Destroy Leader 268 | . 14 110 126 . . 6 . . . . . . 2 . . . . . . . . . . . . . . 10 . Allied During Kill 107 | . . . . . . . . . . . . . . . . . . . . . 95 . . . . . . 12 . Successful Hack 226 | . . 6 17 . . 61 . 78 . . . . 10 . . . . . . . . . 21 13 . 8 . . 12 Disable Machine 135 | . . 15 15 . . . . 15 . . . . 15 . . . . 15 . . . . . . . . 15 45 . Anti-Garrison Action 50 | . . . . . . . . . . . . . . . . . . . . . . . . . . . . . 50 Destroy Structure 368 | . 1 2 4 . . 4 . 20 . . . . 18 . . . . 8 . . . . 8 2 . 37 15 63 186 Advance Influence 300 | . . . . . . . . . . . . . . . . . . . . . . . 300 . . . . . . Partial Spotted 255 | . . 15 . . . 105 . 60 . . . . 15 . . . . . . . . . . . . . . 15 45 Lose Combat Pursuer 975 | . . 60 15 . . 90 . 270 . . . 45 45 45 15 . 135 . 105 . . . 30 . . 15 . . 105 Influence Decreases 3707 | . 75 541 531 143 . 186 82 271 120 59 36 45 55 105 15 10 70 92 71 55 136 139 240 77 57 45 75 88 288 Entered New Map 722 | . . . 40 88 . . 72 9 80 19 36 . 3 23 . . . 32 9 11 . 139 . 57 57 . 9 . 38 Time Decay 2318 | . 75 491 451 55 . 176 10 262 40 40 . 35 50 70 15 10 30 50 52 44 56 . 80 20 . 45 43 48 70 Lost Part 372 | . . 50 40 . . 10 . . . . . 10 . 12 . . 20 10 10 . . . 10 . . . . 20 180 Lost Ally 120 | . . . . . . . . . . . . . . . . . 20 . . . 80 . . . . . . 20 . Purge Threat 175 | . . . . . . . . . . . . . 2 . . . . . . . . . 150 . . . 23 . . Squads Dispatched 22 | . . 1 3 . . 3 . 3 . . . . 3 . . . . . . . . . . . . 4 2 2 1 Investigation 4 | . . . 1 . . . . 1 . . . . 2 . . . . . . . . . . . . . . . . Extermination 7 | . . . . . . 2 . 1 . . . . 1 . . . . . . . . . . . . 1 . 1 1 Reinforcement 6 | . . 1 1 . . 1 . 1 . . . . . . . . . . . . . . . . . . 2 . . Assault . | . . . . . . . . . . . . . . . . . . . . . . . . . . . . . . Garrison 2 | . . . 1 . . . . . . . . . . . . . . . . . . . . . . . . 1 . Intercept 3 | . . . . . . . . . . . . . . . . . . . . . . . . . . 3 . . . Searches Triggered . | . . . . . . . . . . . . . . . . . . . . . . . . . . . . . . Construction Impeded . | . . . . . . . . . . . . . . . . . . . . . . . . . . . . . . Haulers Reinforced . | . . . . . . . . . . . . . . . . . . . . . . . . . . . . . . Active Scanning Responses . | . . . . . . . . . . . . . . . . . . . . . . . . . . . . . . Cargo Convoy Interrupts . | . . . . . . . . . . . . . . . . . . . . . . . . . . . . . . Stealth | -11 -10 -9 -9 -9 -9 -6 -6 -6 -6 -6 -6 -5 -5 -5 -5 -5 -4 -4 -4 -4 -4 -3 -3 -3 -3 -2 -2 -1 -1 --------- Run | Yrd Mat Mat Sto Rec Scr Fac Was Fac Low Low Dat Pro Fac Upp Upp Zhi Pro Fac Upp Upp War Pro Res Arm Lab Res Qua Acc Com Distress Signals 6 | . . 3 1 . . . . . . . . . . . . . . . . . . . . . . 1 . . 1 Communications Jammed . | . . . . . . . . . . . . . . . . . . . . . . . . . . . . . . Distress Signals . | . . . . . . . . . . . . . . . . . . . . . . . . . . . . . . Times Spotted 246 | . 7 33 26 . . 14 4 28 . . 4 5 6 8 2 . 21 3 5 . 6 4 4 1 1 11 11 11 31 Peak Tracking Total 25 | . 2 5 4 . . 4 4 6 . . 4 5 4 5 1 . 12 2 5 . 4 2 4 1 . 9 8 7 25 Tactical Retreats 28 | . . 3 1 . . 3 . 6 . . . 1 1 2 1 . 3 . 3 . . . 1 . . 1 . . 2 Traps | -11 -10 -9 -9 -9 -9 -6 -6 -6 -6 -6 -6 -5 -5 -5 -5 -5 -4 -4 -4 -4 -4 -3 -3 -3 -3 -2 -2 -1 -1 ------- Run | Yrd Mat Mat Sto Rec Scr Fac Was Fac Low Low Dat Pro Fac Upp Upp Zhi Pro Fac Upp Upp War Pro Res Arm Lab Res Qua Acc Com Traps Triggered 11 | . . . 1 . . 2 . 1 . . . 1 . . . . . 1 . . . . . . . . . . 5 Indirectly . | . . . . . . . . . . . . . . . . . . . . . . . . . . . . . . Trap Hack Attempts . | . . . . . . . . . . . . . . . . . . . . . . . . . . . . . . Triggered . | . . . . . . . . . . . . . . . . . . . . . . . . . . . . . . Disarmed . | . . . . . . . . . . . . . . . . . . . . . . . . . . . . . . Reprogrammed . | . . . . . . . . . . . . . . . . . . . . . . . . . . . . . . Reused . | . . . . . . . . . . . . . . . . . . . . . . . . . . . . . . Traps Extracted . | . . . . . . . . . . . . . . . . . . . . . . . . . . . . . . Installed . | . . . . . . . . . . . . . . . . . . . . . . . . . . . . . . Triggered . | . . . . . . . . . . . . . . . . . . . . . . . . . . . . . . Machines | -11 -10 -9 -9 -9 -9 -6 -6 -6 -6 -6 -6 -5 -5 -5 -5 -5 -4 -4 -4 -4 -4 -3 -3 -3 -3 -2 -2 -1 -1 ---------- Run | Yrd Mat Mat Sto Rec Scr Fac Was Fac Low Low Dat Pro Fac Upp Upp Zhi Pro Fac Upp Upp War Pro Res Arm Lab Res Qua Acc Com Machines Disabled 14 | . . 1 1 . . . . 1 . . . . 1 . . . . 1 . . . . . . 3 . 1 3 2 Max in Single Turn 2 | . . 1 1 . . . . 1 . . . . 1 . . . . 1 . . . . . . 2 . 1 1 2 Garrison Access 7 | . . . . . . 1 . 3 . . . . . . . . . 2 . . . . . . . 1 . . . Phase Generator 1 | . . . . . . . . . . . . . . . . . . . . . . . . . . . . . 1 Machines Repaired . | . . . . . . . . . . . . . . . . . . . . . . . . . . . . . . Machines Dismantled . | . . . . . . . . . . . . . . . . . . . . . . . . . . . . . . Machines Sabotaged . | . . . . . . . . . . . . . . . . . . . . . . . . . . . . . . Overloaded Fab Kills . | . . . . . . . . . . . . . . . . . . . . . . . . . . . . . . Hacking | -11 -10 -9 -9 -9 -9 -6 -6 -6 -6 -6 -6 -5 -5 -5 -5 -5 -4 -4 -4 -4 -4 -3 -3 -3 -3 -2 -2 -1 -1 --------- Run | Yrd Mat Mat Sto Rec Scr Fac Was Fac Low Low Dat Pro Fac Upp Upp Zhi Pro Fac Upp Upp War Pro Res Arm Lab Res Qua Acc Com Machines Accessed 75 | . 2 4 6 . . 6 . 12 . 1 3 . 4 . 1 2 . 5 . . 5 . 6 5 1 3 3 1 5 Terminals 36 | . 2 4 6 . . 3 . 5 . . . . 3 . . . . 1 . . . . 4 . . 1 2 1 4 Fabricators 13 | . . . . . . 2 . 2 . . . . 1 . . . . 1 . . . . 1 5 . 1 . . . Repair Stations 6 | . . . . . . . . 2 . . . . . . . . . 1 . . . . 1 . . . 1 . 1 Recycling Units . | . . . . . . . . . . . . . . . . . . . . . . . . . . . . . . Scanalyzers . | . . . . . . . . . . . . . . . . . . . . . . . . . . . . . . Garrison Access 7 | . . . . . . 1 . 3 . . . . . . . . . 2 . . . . . . . 1 . . . Total Hacks 181 | . 4 9 13 . . 14 . 24 . 1 26 . 12 . 1 8 . 6 . . 9 . 10 6 20 5 4 1 8 Successful 134 | . 1 2 4 . . 9 . 17 . 1 26 . 8 . 1 8 . 4 . . 9 . 4 5 20 5 4 1 5 Failed 47 | . 3 7 9 . . 5 . 7 . . . . 4 . . . . 2 . . . . 6 1 . . . . 3 Catastrophic 10 | . . 2 4 . . 2 . 1 . . . . . . . . . . . . . . 1 . . . . . . Database Lockouts . | . . . . . . . . . . . . . . . . . . . . . . . . . . . . . . Manual 80 | . 4 9 8 . . 7 . 14 . . . . 9 . . . . 2 . . 1 . 9 6 . 4 2 . 5 Terminals 77 | . 4 9 13 . . 8 . 12 . . . . 10 . . . . 1 . . . . 8 . . 3 2 1 6 Fabricators 19 | . . . . . . 4 . 4 . . . . 2 . . . . 1 . . . . 1 6 . 1 . . . Repair Stations 10 | . . . . . . . . 3 . . . . . . . . . 2 . . . . 1 . . . 2 . 2 Recycling Units . | . . . . . . . . . . . . . . . . . . . . . . . . . . . . . . Scanalyzers . | . . . . . . . . . . . . . . . . . . . . . . . . . . . . . . Garrison Access 10 | . . . . . . 2 . 5 . . . . . . . . . 2 . . . . . . . 1 . . . Terminal Hacks 90 | . . . 3 . . 2 . 4 . 1 26 . 6 . 1 8 . . . . 9 . 2 . 20 2 2 1 3 Record 37 | . . . . . . . . . . . 6 . . . . 4 . . . . 7 . . . 20 . . . . Part Schematic 16 | . . . . . . . . . . . 10 . 2 . . 4 . . . . . . . . . . . . . Robot Schematic 7 | . . . . . . . . . . . 7 . . . . . . . . . . . . . . . . . . Prototype ID Bank 3 | . . . . . . . . . . . 3 . . . . . . . . . . . . . . . . . . Open Door 8 | . . . 3 . . . . . . 1 . . . . 1 . . . . . 2 . . . . . . . 1 Level Access Points 2 | . . . . . . . . . . . . . . . . . . . . . . . . . . 1 1 . . Branch Access Points 4 | . . . . . . . . 2 . . . . 1 . . . . . . . . . 1 . . . . . . Unreport Threat 4 | . . . . . . . . . . . . . 1 . . . . . . . . . 1 . . 1 1 . . Recall Investigation 1 | . . . . . . . . . . . . . 1 . . . . . . . . . . . . . . . . Recall Extermination 1 | . . . . . . . . . . . . . . . . . . . . . . . . . . . . . 1 Registered Components 5 | . . . . . . 1 . 1 . . . . 1 . . . . . . . . . . . . . . 1 1 Registered Prototypes 1 | . . . . . . 1 . . . . . . . . . . . . . . . . . . . . . . . Zone Layout 1 | . . . . . . . . 1 . . . . . . . . . . . . . . . . . . . . . Fabricator Hacks 4 | . . . . . . 1 . 1 . . . . 2 . . . . . . . . . . . . . . . . Network Status 2 | . . . . . . 1 . 1 . . . . . . . . . . . . . . . . . . . . . Load Schematic 1 | . . . . . . . . . . . . . 1 . . . . . . . . . . . . . . . . Build 1 | . . . . . . . . . . . . . 1 . . . . . . . . . . . . . . . . Repair Station Hacks 9 | . . . . . . . . 3 . . . . . . . . . 1 . . . . 1 . . . 2 . 2 Scan Component 3 | . . . . . . . . 1 . . . . . . . . . 1 . . . . . . . . 1 . . Repair 2 | . . . . . . . . 1 . . . . . . . . . . . . . . . . . . 1 . . Refit 4 | . . . . . . . . 1 . . . . . . . . . . . . . . 1 . . . . . 2 Recycling Unit Hacks . | . . . . . . . . . . . . . . . . . . . . . . . . . . . . . . Scanalyzer . | . . . . . . . . . . . . . . . . . . . . . . . . . . . . . . Garrison Access Hacks 7 | . . . . . . 1 . 3 . . . . . . . . . 2 . . . . . . . 1 . . . Seal Access 7 | . . . . . . 1 . 3 . . . . . . . . . 2 . . . . . . . 1 . . . Unauthorized Hacks 24 | . 1 2 1 . . 5 . 6 . . . . . . . . . 1 . . . . 1 5 . 2 . . . Terminals 11 | . 1 2 1 . . 2 . 4 . . . . . . . . . . . . . . . . . 1 . . . Assimilate 5 | . . . . . . 1 . 3 . . . . . . . . . . . . . . . . . 1 . . . Operators 6 | . 1 2 1 . . 1 . 1 . . . . . . . . . . . . . . . . . . . . . Fabricators 13 | . . . . . . 3 . 2 . . . . . . . . . 1 . . . . 1 5 . 1 . . . Fabnet 12 | . . . . . . 2 . 2 . . . . . . . . . 1 . . . . 1 5 . 1 . . . Haulers 1 | . . . . . . 1 . . . . . . . . . . . . . . . . . . . . . . . Repair Stations . | . . . . . . . . . . . . . . . . . . . . . . . . . . . . . . Recycling Units . | . . . . . . . . . . . . . . . . . . . . . . . . . . . . . . Scanalyzers . | . . . . . . . . . . . . . . . . . . . . . . . . . . . . . . Garrison Access . | . . . . . . . . . . . . . . . . . . . . . . . . . . . . . . Data Cores Recovered 3 | . . . . . . . . 2 . . . . . . . . . . . . . . . . . 1 . . . Used . | . . . . . . . . . . . . . . . . . . . . . . . . . . . . . . Hacking Detections 50 | . 2 4 6 . . 6 . 9 . . . . 4 . . . . 3 . . . . 5 4 . 1 2 1 3 Full Trace Events 4 | . . . 1 . . . . 1 . . . . 2 . . . . . . . . . . . . . . . . Feedback Events 1 | . . . 1 . . . . . . . . . . . . . . . . . . . . . . . . . . Corruption 1 | . . . 1 . . . . . . . . . . . . . . . . . . . . . . . . . . Feedback Blocked . | . . . . . . . . . . . . . . . . . . . . . . . . . . . . . . Robot Schematics Acquired 7 | . . . . . . . . . . . 7 . . . . . . . . . . . . . . . . . . Robots Built . | . . . . . . . . . . . . . . . . . . . . . . . . . . . . . . Authchips . | . . . . . . . . . . . . . . . . . . . . . . . . . . . . . . Time . | . . . . . . . . . . . . . . . . . . . . . . . . . . . . . . Total Robot Build Rating . | . . . . . . . . . . . . . . . . . . . . . . . . . . . . . . Part Schematics Acquired 16 | . . . . . . . . . . . 10 . 2 . . 4 . . . . . . . . . . . . . Parts Built 2 | . . . . . . . . . . . . . 2 . . . . . . . . . . . . . . . . Authchips . | . . . . . . . . . . . . . . . . . . . . . . . . . . . . . . Time 95 | . . . . . . . . . . . . . 95 . . . . . . . . . . . . . . . . Total Part Build Rating 10 | . . . . . . . . . . . . . 10 . . . . . . . . . . . . . . . . Parts Repaired 2 | . . . . . . . . 1 . . . . . . . . . . . . . . . . . . 1 . . Time 131 | . . . . . . . . 51 . . . . . . . . . . . . . . . . . . 80 . . Parts Recycled . | . . . . . . . . . . . . . . . . . . . . . . . . . . . . . . Recycled Matter . | . . . . . . . . . . . . . . . . . . . . . . . . . . . . . . Retrieved Matter . | . . . . . . . . . . . . . . . . . . . . . . . . . . . . . . Retrieved Components . | . . . . . . . . . . . . . . . . . . . . . . . . . . . . . . Parts Scanalyzed . | . . . . . . . . . . . . . . . . . . . . . . . . . . . . . . Part Schematics Acquired . | . . . . . . . . . . . . . . . . . . . . . . . . . . . . . . Parts Damaged . | . . . . . . . . . . . . . . . . . . . . . . . . . . . . . . Bothacking | -11 -10 -9 -9 -9 -9 -6 -6 -6 -6 -6 -6 -5 -5 -5 -5 -5 -4 -4 -4 -4 -4 -3 -3 -3 -3 -2 -2 -1 -1 ------------ Run | Yrd Mat Mat Sto Rec Scr Fac Was Fac Low Low Dat Pro Fac Upp Upp Zhi Pro Fac Upp Upp War Pro Res Arm Lab Res Qua Acc Com Used RIF Installer . | . . . . . . . . . . . . . . . . . . . . . . . . . . . . . . Robots Hacked 9 | . . . . . . . . . . . . 1 . . 1 . 1 . . . 1 . . . 1 1 . 2 1 Non-combat . | . . . . . . . . . . . . . . . . . . . . . . . . . . . . . . Combat 8 | . . . . . . . . . . . . 1 . . 1 . 1 . . . 1 . . . . 1 . 2 1 Robot Hacks Applied . | . . . . . . . . . . . . . . . . . . . . . . . . . . . . . . Manual 1 | . . . . . . . . . . . . . . . . . . . . . . . . . 1 . . . . Relay Couplers Released 3 | . . . . . . 3 . . . . . . . . . . . . . . . . . . . . . . . Programmers 3 | . . . . . . 3 . . . . . . . . . . . . . . . . . . . . . . . Fabnet Peak Effective % 15 | . . . . . . . . . . . . 12 12 12 12 12 4 4 4 4 4 3 3 3 3 15 15 9 9 Autooverrided 8 | . . . . . . . . . . . . 1 . . 1 . 1 . . . 1 . . . . 1 . 2 1 Robots Rewired 5 | . . . . . . . . . . . . . . . . . . . . . 5 . . . . . . . . Allies Hacked . | . . . . . . . . . . . . . . . . . . . . . . . . . . . . . . Hacks Repelled . | . . . . . . . . . . . . . . . . . . . . . . . . . . . . . . Allies | -11 -10 -9 -9 -9 -9 -6 -6 -6 -6 -6 -6 -5 -5 -5 -5 -5 -4 -4 -4 -4 -4 -3 -3 -3 -3 -2 -2 -1 -1 -------- Run | Yrd Mat Mat Sto Rec Scr Fac Was Fac Low Low Dat Pro Fac Upp Upp Zhi Pro Fac Upp Upp War Pro Res Arm Lab Res Qua Acc Com Total Allies 16 | . . . . . . 1 . 2 . . . 1 . . 1 . 1 . . . 6 . . . . 1 . 2 1 Largest Group 6 | . . . . . . 1 . 1 1 1 1 . . . 1 . 1 . . . 6 . . . . 1 . 2 1 Highest-Rated Group 360 | . . . . . . 10 . 10 10 10 10 . . . 85 . 12 . . . 360 . . . . 82 . 288 69 Highest-Rated Ally 219 | . . . . . . 10 . 10 10 10 10 . . . 85 . 12 . . . 82 . . . . 82 . 219 69 Total Orders . | . . . . . . . . . . . . . . . . . . . . . . . . . . . . . . Ally Attacks 57 | . . . . . . . . . . . . 1 . . . . 2 . . . 45 . . . . 3 . 3 3 Total Damage 2166 | . . . . . . . . . . . . 16 . . . . 12 . . . 1721 . . . . 32 . 304 81 Kills 14 | . . . . . . . . . . . . . . . . . . . . . 11 . . . . . . 3 . Allies Corrupted . | . . . . . . . . . . . . . . . . . . . . . . . . . . . . . . Allies Melted . | . . . . . . . . . . . . . . . . . . . . . . . . . . . . . . Intel | -11 -10 -9 -9 -9 -9 -6 -6 -6 -6 -6 -6 -5 -5 -5 -5 -5 -4 -4 -4 -4 -4 -3 -3 -3 -3 -2 -2 -1 -1 ------- Run | Yrd Mat Mat Sto Rec Scr Fac Was Fac Low Low Dat Pro Fac Upp Upp Zhi Pro Fac Upp Upp War Pro Res Arm Lab Res Qua Acc Com Active Infowar (turns) 3008 | . . . . . . . . 214 98 80 54 . 123 162 158 63 125 103 151 137 547 158 160 52 117 121 160 121 104 Sensors 3008 | . . . . . . . . 214 98 80 54 . 123 162 158 63 125 103 151 137 547 158 160 52 117 121 160 121 104 Robot Analysis Total 151 | . . . . . . . . . . . 151 . . . . . . . . . . . . . . . . . . Derelict Logs Recovered 8 | . . . . . . . . . . 1 . 1 . . 3 . 2 . . 1 . . . . . . . . . Drone Launches . | . . . . . . . . . . . . . . . . . . . . . . . . . . . . . . Drone Recoveries . | . . . . . . . . . . . . . . . . . . . . . . . . . . . . . . Exploration | -11 -10 -9 -9 -9 -9 -6 -6 -6 -6 -6 -6 -5 -5 -5 -5 -5 -4 -4 -4 -4 -4 -3 -3 -3 -3 -2 -2 -1 -1 ------------- Run | Yrd Mat Mat Sto Rec Scr Fac Was Fac Low Low Dat Pro Fac Upp Upp Zhi Pro Fac Upp Upp War Pro Res Arm Lab Res Qua Acc Com Turns Passed 10217 | 108 541 1682 1197 649 1778 532 20 576 98 80 57 121 278 162 158 66 131 103 151 137 547 158 160 52 117 121 160 121 156 Spaces Moved 12642 | 61 278 783 498 402 1112 1178 70 1352 243 239 113 334 328 446 535 153 322 280 442 285 801 404 274 150 222 333 154 338 512 Core 6 | 6 . . . . . . . . . . . . . . . . . . . . . . . . . . . . . Treads 3191 | 55 278 783 498 402 1112 63 . . . . . . . . . . . . . . . . . . . . . . . Legs . | . . . . . . . . . . . . . . . . . . . . . . . . . . . . . . Wheels . | . . . . . . . . . . . . . . . . . . . . . . . . . . . . . . Hover . | . . . . . . . . . . . . . . . . . . . . . . . . . . . . . . Flight 9445 | . . . . . . 1115 70 1352 243 239 113 334 328 446 535 153 322 280 442 285 801 404 274 150 222 333 154 338 512 Fastest Speed 18 | 50 160 160 160 160 160 28 28 28 28 28 28 28 28 28 28 28 28 28 28 28 24 24 21 24 25 21 21 18 20 Average Speed 60 | 149 160 160 160 160 160 35 28 28 28 28 28 28 28 28 28 28 29 28 28 28 24 24 22 24 25 24 21 19 22 Slowest Speed 160 | 160 160 160 160 160 160 160 28 28 28 28 28 28 28 31 28 28 34 28 28 28 28 24 24 31 25 25 21 21 40 Overloaded Moves 1 | . . . . . . . . . . . . . . . . . . . . . . . . . . . . . 1 Propulsion Burnouts . | . . . . . . . . . . . . . . . . . . . . . . . . . . . . . . Robots Hopped 58 | . . . . . . 16 . 15 2 . . . 4 . . . 2 2 . . . . 3 . . 2 3 3 6 Potential Cave-ins 5 | . . . . . . . . . . . . . . . . . . . . . . . . . . . . 5 . Cave-ins Triggered . | . . . . . . . . . . . . . . . . . . . . . . . . . . . . . . Teleports 2 | . . . . . . . . . . . . . . . . . . . . . . . . 1 . . . 1 . Exploration Rate (%) 48 | 4 59 58 57 88 90 31 72 43 52 38 77 49 10 59 71 60 57 13 61 56 90 63 10 11 98 15 22 14 22 Regions Visited 29 Branch Regions 19 Pre-discovered Areas 34 | . . . 1 . . . . . . 1 28 . . . . 3 . . . 1 . . . . . . . . . Known Exits Taken 21 | . . . . . . . . 1 1 1 1 1 1 1 1 1 1 1 1 1 1 1 1 1 1 1 1 1 . Unknown Exits Taken 6 | 1 1 1 1 1 1 . . . . . . . . . . . . . . . . . . . . . . . . Scrap Searched 17 | . . . . . 3 . . . 3 . . 2 . 1 2 . 1 . 2 1 . 2 . . . . . . . Spaces Dug 86 | . . . . . . 4 . 20 . . 2 . 9 2 2 . . 4 2 2 . 3 4 1 . 7 5 13 6 Terrain Destroyed 165 | . . . . . . 4 . 20 . . 2 . 9 2 2 . . 4 2 2 . 3 4 1 . 11 5 19 75 Melee 67 | . . . . . . 4 . 20 . . 2 . 9 2 2 . . 4 2 2 . 3 4 1 . 7 5 . . Projectile 30 | . . . . . . . . . . . . . . . . . . . . . . . . . . 4 . 19 7 AOE 68 | . . . . . . . . . . . . . . . . . . . . . . . . . . . . . 68 Terrain Rammed . | . . . . . . . . . . . . . . . . . . . . . . . . . . . . . . Walls Destroyed . | . . . . . . . . . . . . . . . . . . . . . . . . . . . . . . Machines Disabled . | . . . . . . . . . . . . . . . . . . . . . . . . . . . . . . Actions | -11 -10 -9 -9 -9 -9 -6 -6 -6 -6 -6 -6 -5 -5 -5 -5 -5 -4 -4 -4 -4 -4 -3 -3 -3 -3 -2 -2 -1 -1 --------- Run | Yrd Mat Mat Sto Rec Scr Fac Was Fac Low Low Dat Pro Fac Upp Upp Zhi Pro Fac Upp Upp War Pro Res Arm Lab Res Qua Acc Com Total 14538 | 78 329 1025 733 408 1111 1242 69 1496 270 251 127 359 477 478 539 166 351 293 464 338 1151 458 363 164 275 353 259 369 542 Wait 1189 | . 14 84 95 7 . 5 . 109 30 13 8 12 127 31 . . 23 . 16 52 321 50 77 . 31 . 80 1 3 Move 12503 | 60 277 782 497 401 1111 1147 69 1321 239 238 112 333 320 445 534 152 317 275 441 284 800 403 267 149 221 328 148 331 501 Hop 54 | . . . . . . 15 . 15 1 . . . 3 . . . 2 2 . . . . 3 . . 2 3 3 5 Pick Up 107 | 12 8 21 11 . . 8 . 8 . . . . 3 . . 5 2 4 2 . 3 . 2 2 5 3 3 2 3 Fast Attach 34 | . . 3 5 . . 4 . 5 . . . . . . . . 2 1 . . 4 . 2 2 . 4 1 1 . Attach 68 | 6 1 4 4 . . 13 . 1 . . . . 3 . 3 2 1 3 2 . . . 1 4 6 2 2 5 5 Detach 18 | . . . 1 . . 5 . . . . . . . . . . . . . . 1 . . 2 2 . 2 2 3 Swap 30 | . . 11 11 . . 1 . 1 . . . . . . . . . . . . 1 2 2 . . 1 . . . Drop 102 | . 5 17 20 . . 13 . 10 . . . . . . . 1 1 2 . . 7 . 5 4 3 3 2 3 6 Fire 262 | . 24 103 88 . . 11 . . . . . . . . . . . . . . . . . . 2 2 . 21 11 Melee 133 | . . . . . . 20 . 26 . . 7 1 21 2 2 6 3 6 3 2 . 3 4 1 5 8 13 . . Ram . | . . . . . . . . . . . . . . . . . . . . . . . . . . . . . . Kick . | . . . . . . . . . . . . . . . . . . . . . . . . . . . . . . Crush 1 | . . . 1 . . . . . . . . . . . . . . . . . . . . . . . . . . Escape Stasis 23 | . . . . . . . . . . . . 13 . . . . . . . . . . . . . . 5 . 5 Rewire 14 | . . . . . . . . . . . . . . . . . . . . . 14 . . . . . . . . Trap . | . . . . . . . . . . . . . . . . . . . . . . . . . . . . . . Miscellaneous . | . . . . . . . . . . . . . . . . . . . . . . . . . . . . . . Route ------- -11/Scrapyard -10/Materials (discovered 2 exits: *Mat / [*Min]) -9/Materials (discovered 4 exits: [*Mat x2] / *Sto x2) -9/Storage -9/Recycling (discovered 2 exits: [*Fac] / *Scr) -9/Scraptown (discovered 2 exits: *Fac x2) -6/Factory (discovered 2 exits: *Fac / *Low) -6/Waste -6/Factory (discovered 5 exits: *Fac x3 / *Low x2) -6/Lower Caves -6/Lower Caves -6/Data Miner -5/Proximity Caves -5/Factory (discovered 2 exits: *Upp x2) -5/Upper Caves -5/Upper Caves (discovered 2 exits: Fac / *Zhi) -5/Zhirov -4/Proximity Caves -4/Factory -4/Upper Caves -4/Upper Caves -4/Warlord -3/Proximity Caves -3/Research (discovered 3 exits: *Arm / Tes x2) -3/Armory (discovered 2 exits: Res / *Lab) -3/Lab -2/Research (discovered 4 exits: Acc x3 / *Qua) -2/Quarantine -1/Access (discovered 2 exits: Sur / *Com) -1/Command (discovered 1 exit: *Sur) History --------- Turn | Location | Event 13 | -11/Scrapyard | Discovered new exit (range 16) 109 | -11/Scrapyard | Entered Materials 302 | -10/Materials | Build established: Mutant 480 | -10/Materials | Discovered new exit (range 12) 565 | -10/Materials | Discovered new exit (range 12) 650 | -10/Materials | Entered another Materials area 650 | -9/Materials | Evolved 2 slots: Propulsion x1, Utility x1 1586 | -9/Materials | Discovered new exit (range 16) 1817 | -9/Materials | Discovered new exit (range 5) 2095 | -9/Materials | Build established: Scavenger-Mutant 2149 | -9/Materials | Discovered new exit (range 7) 2216 | -9/Materials | Discovered new exit (range 4) 2332 | -9/Materials | Entered Storage 2813 | -9/Storage | Garrison activated, responded to threat 2887 | -9/Storage | Learned location of Armory (-3) 3366 | -9/Storage | Used back door to open Recycling access 3366 | -9/Storage | Discovered new exit (range 4) 3529 | -9/Storage | Entered Recycling 3530 | -9/Recycling | Met a Zionite searching for Scraptown 3618 | -9/Recycling | Build established: Mutant 3773 | -9/Recycling | Discovered new exit (range 15) 4140 | -9/Recycling | Scanned before Scraplab entrance 4162 | -9/Recycling | Entered Scraplab 4175 | -9/Recycling | Discovered new exit (range 3) 4178 | -9/Recycling | Entered Scraptown 4178 | -9/Scraptown | System corruption cleaned by C-Scrubber 4545 | -9/Scraptown | Heard Great Nut preacher, LISTEN AND RECITE! 4586 | -9/Scraptown | Discovered new exit (range 13) 4692 | -9/Scraptown | Visited The Evicted 4727 | -9/Scraptown | Visited Fellowship of the Rings 5015 | -9/Scraptown | Visited IN-MT5's Study 5042 | -9/Scraptown | Visited Symbiants 5084 | -9/Scraptown | Visited CPS Storage 5122 | -9/Scraptown | Visited Assassins FH 5159 | -9/Scraptown | Visited Cyclists 5204 | -9/Scraptown | Visited UFD Registry 5204 | -9/Scraptown | Registered with UFD as "Slugcycle" 5234 | -9/Scraptown | Entered Cyclist Reading Room 5311 | -9/Scraptown | Visited LU-1G1's Boring Crew 5334 | -9/Scraptown | Visited Junk Repository 5377 | -9/Scraptown | Visited Scrap Suit Storage 5417 | -9/Scraptown | Visited Chapter 10 5583 | -9/Scraptown | Visited Supply Room 5617 | -9/Scraptown | Visited Scrapoid Pod Storage 5631 | -9/Scraptown | Visited Observation Area 5732 | -9/Scraptown | Visited Derelict Rescue Squad 5774 | -9/Scraptown | Visited Botcube Research 5946 | -9/Scraptown | Discovered new exit (range 5) 5956 | -9/Scraptown | Entered Factory 5956 | -6/Factory | Evolved 6 slots: Propulsion x2, Utility x4 6094 | -6/Factory | Discovered new exit (range 15) 6439 | -6/Factory | Spotted B-75 Beast 6445 | -6/Factory | Discovered new exit (range 16) 6450 | -6/Factory | Build established: Hacker-Sprinter 6488 | -6/Factory | Sucked down chute 6488 | -6/Factory | Entered Waste 6494 | -6/Waste | Spotted C-40 Crusher 6499 | -6/Waste | Spotted C-40 Crusher 6501 | -6/Waste | Spotted C-40 Crusher 6502 | -6/Waste | Spotted C-40 Crusher 6502 | -6/Waste | Spotted C-40 Crusher 6504 | -6/Waste | Discovered new exit (range 16) 6508 | -6/Waste | Entered Factory 6602 | -6/Factory | Identified exit to Lower Caves 6612 | -6/Factory | Discovered new exit (range 15) 6753 | -6/Factory | Discovered new exit (range 8) 6813 | -6/Factory | Repaired Imp. Flight Unit 6864 | -6/Factory | Discovered new exit (range 12) 6875 | -6/Factory | Identified exit to Factory 7084 | -6/Factory | Entered Lower Caves 7084 | -6/Lower Caves | Accompanied by 1 ally 7150 | -6/Lower Caves | Encountered a Warlord checkpoint 7150 | -6/Lower Caves | Discovered new exit (range 10) 7152 | -6/Lower Caves | Identified exit to Lower Caves 7182 | -6/Lower Caves | Entered another Lower Caves area 7182 | -6/Lower Caves | Accompanied by 1 ally 7242 | -6/Lower Caves | Discovered new exit (range 14) 7249 | -6/Lower Caves | Identified exit to Data Miner 7262 | -6/Lower Caves | Entered Data Miner 7262 | -6/Data Miner | Accompanied by 1 ally 7262 | -6/Data Miner | Discovered new exit (range 6) 7268 | -6/Data Miner | Met Data Miner 7275 | -6/Data Miner | Learned location of Section 7 (-2) 7275 | -6/Data Miner | Acquired the access code to Warlord's prototype stash 7278 | -6/Data Miner | Received God Mode back door access code from Data Miner 7289 | -6/Data Miner | Interfaced with the Data Conduit 7319 | -6/Data Miner | Identified exit to Proximity Caves 7319 | -6/Data Miner | Entered Proximity Caves 7339 | -5/Proximity Caves | Learned Factory interactive machine intel 7440 | -5/Proximity Caves | Discovered exit to Factory (range 3) 7440 | -5/Proximity Caves | Entered Factory 7440 | -5/Factory | Evolved 2 slots: Utility x2 7441 | -5/Factory | Loaded intel: 300 machine locations 7442 | -5/Factory | Loaded intel: 53 interactive machine locations 7547 | -5/Factory | Fabricated Weapon Mount (x2) 7556 | -5/Factory | Spotted B-75 Beast 7609 | -5/Factory | Identified exit to Upper Caves 7718 | -5/Factory | Entered Upper Caves 7727 | -5/Upper Caves | Encountered a Warlord checkpoint 7730 | -5/Upper Caves | Build established: Wizard-Sprinter 7875 | -5/Upper Caves | Discovered new exit (range 14) 7879 | -5/Upper Caves | Identified exit to Upper Caves 7880 | -5/Upper Caves | Entered another Upper Caves area 7966 | -5/Upper Caves | Spotted B-75 Beast 7978 | -5/Upper Caves | Learned Factory emergency access door positions 8003 | -5/Upper Caves | Discovered new exit (range 4) 8004 | -5/Upper Caves | Identified exit to Factory 8006 | -5/Upper Caves | Learned Factory non-interactive machine intel 8029 | -5/Upper Caves | Identified exit to Zhirov 8038 | -5/Upper Caves | Entered Zhirov 8038 | -5/Zhirov | Discovered new exit (range 3) 8044 | -5/Zhirov | Met Zhirov 8051 | -5/Zhirov | Zhirov requested help retrieving the SGEMP Prototype 8055 | -5/Zhirov | Found Alien Artifact 8057 | -5/Zhirov | Identified Integrated Dissipator 8057 | -5/Zhirov | Installed Integrated Dissipator, increased core heat dissipation (+20) 8063 | -5/Zhirov | Found Alien Artifact 8103 | -5/Zhirov | Identified exit to Proximity Caves 8104 | -5/Zhirov | Entered Proximity Caves 8109 | -4/Proximity Caves | Ambushed by research squad 8110 | -4/Proximity Caves | Learned Research security intel 8131 | -4/Proximity Caves | Spotted B-86 Titan 8160 | -4/Proximity Caves | Learned Research trap positions 8181 | -4/Proximity Caves | Lost 3 parts (1p1n1u) 8233 | -4/Proximity Caves | Discovered exit to Factory (range 10) 8235 | -4/Proximity Caves | Entered Factory 8235 | -4/Factory | Evolved 2 slots: Propulsion x1, Utility x1 8237 | -4/Factory | Loaded intel: 280 machine locations 8238 | -4/Factory | Loaded intel: 225 non-interactive machine locations 8315 | -4/Factory | Discovered new exit (range 8) 8317 | -4/Factory | Identified exit to Upper Caves 8338 | -4/Factory | Entered Upper Caves 8450 | -4/Upper Caves | Attracted the attention of an 0b10 checkpoint 8479 | -4/Upper Caves | Build established: Hacker-Sprinter 8486 | -4/Upper Caves | Discovered new exit (range 12) 8489 | -4/Upper Caves | Identified exit to Upper Caves 8489 | -4/Upper Caves | Entered another Upper Caves area 8617 | -4/Upper Caves | Discovered new exit (range 12) 8626 | -4/Upper Caves | Identified exit to Warlord 8626 | -4/Upper Caves | Spotted B-86 Titan 8626 | -4/Upper Caves | Entered Warlord 8665 | -4/Warlord | Opened Warlord's prototype stash 8670 | -4/Warlord | Found Prototype Hackware 8670 | -4/Warlord | Identified System Mapper 8737 | -4/Warlord | Visited the Vortex Lab 8738 | -4/Warlord | Found Prototype Energy Cannon 8738 | -4/Warlord | Identified Vortex Driver 8755 | -4/Warlord | Warlord's base attacked by MAIN.C 8777 | -4/Warlord | Rebuked by Warlord 8789 | -4/Warlord | Learned Testing emergency access door positions 8790 | -4/Warlord | Learned 4 Armory zone layouts 8790 | -4/Warlord | Learned 4 Access zone layouts 8790 | -4/Warlord | Learned Factory terminal intel 8790 | -4/Warlord | Learned Factory repair station intel 8790 | -4/Warlord | Learned Factory recycling unit intel 8790 | -4/Warlord | Learned Armory garrison access intel 8830 | -4/Warlord | Opened side exit 9083 | -4/Warlord | Build established: Wizard-Sprinter 9086 | -4/Warlord | Lost 4 allies 9105 | -4/Warlord | Warlord forces counterattacked 9109 | -4/Warlord | Spotted Striker 9170 | -4/Warlord | Discovered new exit (range 14) 9173 | -4/Warlord | Identified exit to Proximity Caves 9173 | -4/Warlord | Entered Proximity Caves 9176 | -3/Proximity Caves | Lost 11 allies 9201 | -3/Proximity Caves | Spotted B-86 Titan 9214 | -3/Proximity Caves | Spotter reported a threat 9214 | -3/Proximity Caves | Spotter reported a threat 9325 | -3/Proximity Caves | Discovered new exit (range 9) 9327 | -3/Proximity Caves | Identified exit to Research 9331 | -3/Proximity Caves | Entered Research 9331 | -3/Research | Evolved 2 slots: Power x1, Propulsion x1 9332 | -3/Research | Loaded intel: 59 trap records 9334 | -3/Research | Loaded intel: 113 machine locations 9422 | -3/Research | Identified exit to Armory 9422 | -3/Research | Identified exit to Testing 9491 | -3/Research | Entered Armory 9492 | -3/Armory | Met VL-GR5, who suggested a friendly competition 9492 | -3/Armory | Identified exit to Research 9493 | -3/Armory | Loaded intel: 97 machine locations 9542 | -3/Armory | Identified Transdimensional Reconstructor 9542 | -3/Armory | Warped through subspace to slip node 9542 | -3/Armory | Discovered new exit (range 1) 9542 | -3/Armory | Identified exit to Lab 9543 | -3/Armory | Entered Lab 9543 | -3/Lab | Discovered exit to Research (range 9) 9546 | -3/Lab | Hidden lab's door opened automatically 9546 | -3/Lab | Sensor layout match revealed 9547 | -3/Lab | Gained access to the hidden lab's interior 9587 | -3/Lab | Found Alien Artifact 9588 | -3/Lab | Identified Core Regenerator 9588 | -3/Lab | Used Core Regenerator, restored core integrity (+70) 9594 | -3/Lab | Found Alien Artifact 9596 | -3/Lab | Identified Integrated Mediator 9596 | -3/Lab | Installed Integrated Mediator, increased core attachment efficiency 9609 | -3/Lab | Found Prototype Hackware 9614 | -3/Lab | Identified Deep Network Scanner 9620 | -3/Lab | Decrypted terminal 9620 | -3/Lab | Acquired modification code for an L2 power cell 9626 | -3/Lab | Detected by scanners 9637 | -3/Lab | Found Prototype Special Weapon 9638 | -3/Lab | Identified Gui. Remote Datajack 9641 | -3/Lab | Hacked A5 with code downloaded from Data Conduit 9643 | -3/Lab | Confronted by A5 9644 | -3/Lab | Destroyed A5 9654 | -3/Lab | Found Transdimensional Reconstructor 9660 | -3/Lab | Entered Research 9660 | -2/Research | Evolved 2 slots: Propulsion x1, Utility x1 9661 | -2/Research | Loaded intel: 120 machine locations 9664 | -2/Research | Identified exit to Access 9768 | -2/Research | Intercept squad dispatched 9779 | -2/Research | Spotted Tracker 9779 | -2/Research | Discovered new exit (range 6) 9780 | -2/Research | Spotted Tracker 9780 | -2/Research | Identified exit to Quarantine 9781 | -2/Research | Entered Quarantine 9782 | -2/Quarantine | Loaded intel: 83 machine locations 9865 | -2/Quarantine | Repaired Exp. Propulsion Shielding 9885 | -2/Quarantine | Found Alien Artifact 9895 | -2/Quarantine | Scanned by Researcher 9902 | -2/Quarantine | Found Alien Artifact 9903 | -2/Quarantine | Identified Subatomic Replicator 9903 | -2/Quarantine | Used Subatomic Replicator to create Alien Artifact 9941 | -2/Quarantine | Entered Access 9941 | -1/Access | Evolved 2 slots: Propulsion x1, Utility x1 9942 | -1/Access | Identified exit to Surface 9943 | -1/Access | Loaded intel: 106 machine locations 9943 | -1/Access | Identified Supercharged TR 9943 | -1/Access | Warped through subspace 9943 | -1/Access | Spotted B-99 Colossus 9961 | -1/Access | Found Com. Tesla Bomb Launcher 10026 | -1/Access | Local machine network offline 10026 | -1/Access | Spotted B-99 Colossus 10034 | -1/Access | Garrison activated, responded to threat 10059 | -1/Access | Discovered new exit (range 7) 10062 | -1/Access | Identified exit to Command 10062 | -1/Access | Entered Command 10063 | -1/Command | Loaded intel: 67 machine locations 10075 | -1/Command | Phase Generator disabled 10157 | -1/Command | Spotted M Guard 10157 | -1/Command | Spotted M Guard 10157 | -1/Command | Spotted Combat Programmer 10158 | -1/Command | Spotted Combat Programmer 10165 | -1/Command | Met MAIN.C 10166 | -1/Command | 0b10 Conduit disabled 10209 | -1/Command | Spotted Alpha 7 10209 | -1/Command | Spotted Alpha 7 10209 | -1/Command | Spotted Striker 10209 | -1/Command | Spotted Striker 10209 | -1/Command | Spotted Executioner 10209 | -1/Command | Spotted Executioner 10209 | -1/Command | Spotted Executioner 10209 | -1/Command | Spotted Executioner 10209 | -1/Command | Spotted B-99 Colossus 10211 | -1/Command | Core integrity fell below 50% 10211 | -1/Command | System corruption reached 10% 10212 | -1/Command | Spotted B-99 Colossus 10217 | -1/Command | Core integrity fell below 20% 10217 | -1/Command | Discovered exit to Surface (range 8) 10218 | -1/Command | Destroyed by Striker with Compact Linear Accelerator Last Messages --------------- Slug penetrates Executioner. Slug penetrates B-99 Colossus. Field strength at 71. Penetrated by Slug. Slug penetrates Access Shell. Field strength at 32. Penetrated by Slug. Slug penetrates B-99 Colossus. Slug penetrates Wall. Stasis field depleted. Imp. Hacking Suite destroyed. Cld. Impulse Thruster destroyed. Penetrated by Slug. Slug penetrates Wall. Knocked back. The Access Shell folds into the floor. EXIT=FOUND: SURFACE Penetrated by Slug. System corrupted: Matter fused (-5). Field strength at 10. Map ----- +----------------------------------------------------+ | ?????????????????????????????????????????????????? | | ?""""????????????????????????????????????????????? | | ?""""????????????????????????????????????????????? | | ?""""????????????????????????????????????????????? | | ?""""????????????????????????????????????????????? | | ?????????????????????????????????????????????????? | | ?????????????????????????????????????????????????? | | ?????????????????????????????????????????????????? | | ?????????????????????????????????????????????????? | | ?????????????????????????????????????????????????? | | ?????????????????????????????????????????????????? | | ?????????????????????????????????????????????????? | | ?????????????????????????????????????????????????? | | ?????????????????????????????????????????????????? | | ?????????????????????????????????????????????????? | | ?????????????????????????????????????????????????? | | ??????????????????????????############???????????? | | ????????????????????????##BB ???????????? | | ?????????????????########;BB #??????????? | | ???????????????### #K#E# ; #??????????? | | ######+######### 7 E #??????????? | | + ^ #??????????? | | ???# ; "< #??????????? | | ???# % / % % % "" #??????????? | | ???# ss^ s s E % % #??????????? | | ????##+## ### %^ EK @BB #??????????? | | ????????# #?###7; # # #BB #??????????? | | ????????# #???######### #??????????? | | ????????# #????????????? #??????????? | | ????????# #?????????????############??????????? | | ????????# #???????????????????????????????????? | | ????????# #???????????????????????????????????? | | ????????# #???????????????????????????????????? | | ????????# +???????????????????????????????????? | | ????????# #?????""????""??????????????????????? | | ????????# #????""""??""""?????????????????????? | | ???###### #????""""??""""?????????????????????? | | ??? # #?????""????""??????????????????????? | | * # #???????????????????????????????????? | | "" # #???????????????????????????????????? | | """" # ######+#+#??????????????????????????? | | """" # """"" #?????????????????????###### | | "" # ""T"" #?????????????????????# | | # #??????????????########=== | | ?? ?# #??????????????# #== | | ####+#### ! ################ #== | | + " | | ################ # | | #??????????????# # | | #??????????????# ##+### | +----------------------------------------------------+ Best States ------------- Heat Dissipation 72 Energy Generation 43 Energy Capacity 265 Matter Stores 300 Matter Capacity 300 Sight Range 16 Robot Scan Range 16 Terrain Scan Density 10 Power Amplification 20 Additional Mass Support 12 Armor Coverage 450 Propulsion Shielding 90 Evasion (%) 72 Recoil Reduction 3 Offensive Hacking 89 Defensive Hacking 10 Item Schematics ----------------- Combat Drone Bay | -6/Data Miner | Free Lgt. Regenerative Plating | -6/Data Miner | Free Cld. Nuclear Pulse Thruster | -6/Data Miner | Free Adv. EM Disruption Field | -6/Data Miner | Free Hvy. Gatling Laser | -6/Data Miner | Free Hvy. Siege Treads | -6/Data Miner | Free Lrn. Sensor Array | -6/Data Miner | Free Hvy. Disruptor Cannon | -6/Data Miner | Free Railgun | -6/Data Miner | Free Q-thruster | -6/Data Miner | Free Weapon Mount | -5/Factory | Hacked Adv. Targeting Computer | -5/Factory | Hacked Assault Drone Bay | -5/Zhirov | Free Exp. Optical Array | -5/Zhirov | Free Exp. Heat Sink | -5/Zhirov | Free Imp. Arc Thrower | -5/Zhirov | Free Robot Schematics ------------------ R-10 Processor | -6/Data Miner | Free P-60 Hacker | -6/Data Miner | Free S-27 Virus | -6/Data Miner | Free A-27 Freighter | -6/Data Miner | Free Y-64 Sentinel | -6/Data Miner | Free M-22 Extractor | -6/Data Miner | Free A-15 Conveyor | -6/Data Miner | Free Fabricated ------------ Weapon Mount | x2 | -5/Factory Repaired ---------- Imp. Flight Unit | 5% | -6/Factory Exp. Propulsion Shielding | 2% | -2/Quarantine Alien Tech Used ----------------- Integrated Dissipator Transdimensional Reconstructor Core Regenerator Integrated Mediator Subatomic Replicator Supercharged TR Achievements -------------- None Challenges ------------ None Game ------ Seed ElectrostormHackingBallwheel Manual? 0 Play Time 02:36:27 Cumulative 254.0 hours Start 2025.09.24 @ 15:48:48 End 2025.09.24 @ 18:47:14 Sessions 1 Manual Loads 0 Difficulty Rogue Special Mode None Game No. 223 Rogue 223 Adventurer 0 Explorer 0 Win Type - Total 16 Types 9/0/2/2/1/0/0/1/0/1 Lore% 93 Gallery% 87 Achievement% 75 Wizard Run 0 Options --------- Layout 1 ASCII 0 Keyboard 0 Movement Numpad Keybinds 0 Fullscreen 1 Font 24/Proggy Map View 50x35 Zoom Use 0% Tactical HUD 0 Map Filters NONE Filters NONE Steam 1 RUN: 454f14ee-9d0c-4f86-a6fc-48862b202194